fUSD/lending_fUSD_20241221
["ID","MTS","AMOUNT","RATE_DAILY","PERIOD"]
[346211084,1734775909088,-1565.87,0.00020821,2]
[346211085,1734775909097,-500.0,0.00020821,2]
[346211086,1734775909106,-859.98,0.00020821,2]
[346211087,1734775909115,-1458.03,0.00020821,2]
[346211088,1734775909126,-500.0,0.00020821,2]
[346211089,1734775909135,-500.0,0.00020821,2]
[346211090,1734775909144,-4052.02,0.00020821,2]
[346211091,1734775909153,-500.0,0.00020821,2]
[346211092,1734775909162,-500.0,0.00020821,2]
[346211093,1734775909171,-500.0,0.00020821,2]
[346211094,1734775909180,-509.52764049,0.00020821,2]
[346211095,1734775909190,-200.45421978,0.00020821,2]
[346211096,1734775909199,-632.15,0.00020821,2]
[346211097,1734775909208,-830.33,0.00020821,2]
[346211098,1734775909218,-858.9,0.00020821,2]
[346211099,1734775909229,-1009.36,0.00020821,2]
[346211100,1734775909239,-1002.4,0.00020821,2]
[346211101,1734775909249,-2321.55,0.00020821,2]
[346211102,1734775909258,-600.34,0.00020821,2]
[346211103,1734775909268,-1104.22,0.00020821,2]
[346211104,1734775909277,-764.36,0.00020821,2]
[346211105,1734775909288,-500.0,0.00020821,2]
[346211106,1734775909297,-151.0,0.00020821,2]
[346211107,1734775909306,-544.82710198,0.00020821,2]
[346211108,1734775909315,-4224.23,0.00020821,2]
[346211109,1734775909325,-1180.1,0.00020821,2]
[346211110,1734775909334,-633.6,0.00020821,2]
[346211111,1734775909343,-634.17,0.00020821,2]
[346211112,1734775909353,-342.523263,0.00020821,2]
[346211113,1734775909362,-500.0,0.00020821,2]
[346211114,1734775909372,-1585.36,0.00020821,2]
[346211115,1734775909381,-898.1,0.00020821,2]
[346211116,1734775909390,-500.0,0.00020821,2]
[346211117,1734775909399,-507.57742731,0.00020821,2]
[346211118,1734775909409,-4622.95,0.00020821,2]
[346211119,1734775909419,-342.523263,0.00020821,2]
[346211120,1734775909428,-1021.92,0.00020821,2]
[346211121,1734775909437,-691.59,0.00020821,2]
[346211122,1734775909447,-500.0,0.00020821,2]
[346211123,1734775909457,-151.0,0.00020821,2]
[346211124,1734775909467,-1424.85,0.00020821,2]
[346211125,1734775909477,-2579.16,0.00020821,2]
[346211126,1734775909487,-2578.29,0.00020821,2]
[346211127,1734775909500,-151.0,0.00020821,2]
[346211128,1734775909509,-500.0,0.00020821,2]
[346211129,1734775909518,-214.68543,0.00020821,2]
[346211130,1734775909528,-754.63,0.00020821,2]
[346211131,1734775909539,-500.0,0.00020821,2]
[346211132,1734775909549,-788.9,0.00020821,2]
[346211133,1734775909558,-500.0,0.00020821,2]
[346211134,1734775909567,-500.0,0.00020821,2]
[346211135,1734775909576,-1154.56,0.00020821,2]
[346211136,1734775909586,-2172.59,0.00020821,2]
[346211137,1734775909595,-500.0,0.00020821,2]
[346211138,1734775909604,-1815.99,0.00020821,2]
[346211139,1734775909614,-564.41,0.00020821,2]
[346211140,1734775909623,-500.0,0.00020821,2]
[346211141,1734775909633,-2330.72,0.00020821,2]
[346211142,1734775909642,-765.63,0.00020821,2]
[346211143,1734775909652,-2027.75,0.00020821,2]
[346211144,1734775909661,-692.78,0.00020821,2]
[346211145,1734775909671,-1929.85,0.00020821,2]
[346211146,1734775909682,-1824.57,0.00020821,2]
[346211147,1734775909692,-3085.76,0.00020821,2]
[346211148,1734775909701,-500.0,0.00020821,2]
[346211149,1734775909711,-3050.1,0.00020821,2]
[346211150,1734775909720,-1827.52,0.00020821,2]
[346211151,1734775909730,-500.0,0.00020821,2]
[346211152,1734775909740,-649.52,0.00020821,2]
[346211153,1734775909749,-5765.15,0.00020821,2]
[346211154,1734775909758,-500.0,0.00020821,2]
[346211155,1734775909768,-870.4,0.00020821,2]
[346211156,1734775909778,-969.47,0.00020821,2]
[346211157,1734775909788,-500.0,0.00020821,2]
[346211158,1734775909797,-606.49,0.00020821,2]
[346211159,1734775909806,-818.72,0.00020821,2]
[346211160,1734775909816,-1170.36,0.00020821,2]
[346211161,1734775909825,-1969.88,0.00020821,2]
[346211162,1734775909835,-151.0,0.00020821,2]
[346211163,1734775909845,-500.0,0.00020821,2]
[346211164,1734775909855,-500.0,0.00020821,2]
[346211165,1734775909864,-1351.85,0.00020821,2]
[346211166,1734775909874,-500.0,0.00020821,2]
[346211167,1734775909884,-1171.29,0.00020821,2]
[346211168,1734775909895,-905.62,0.00020821,2]
[346211169,1734775909904,-184.102424,0.00020821,2]
[346211170,1734775909914,-500.0,0.00020821,2]
[346211171,1734775909923,-3955.31,0.00020821,2]
[346211172,1734775909933,-500.0,0.00020821,2]
[346211173,1734775909942,-500.0,0.00020821,2]
[346211174,1734775909952,-3406.92,0.00020821,2]
[346211175,1734775909962,-3714.4,0.00020821,2]
[346211176,1734775909972,-551.67,0.00020821,2]
[346211177,1734775909981,-1872.87,0.00020821,2]
[346211178,1734775909990,-1524.84,0.00020821,2]
[346211179,1734775910000,-1092.92,0.00020821,2]
[346211180,1734775910010,-3322.3,0.00020821,2]
[346211181,1734775910019,-500.0,0.00020821,2]
[346211182,1734775910029,-500.0,0.00020821,2]
[346211183,1734775910039,-151.0,0.00020821,2]
[346211184,1734775910050,-500.0,0.00020821,2]
[346211185,1734775910062,-151.0,0.00020821,2]
[346211186,1734775910071,-503.05938212,0.00020821,2]
[346211187,1734775910081,-818.84367,0.00020821,2]
[346211188,1734775910092,-256.05625119,0.00020821,2]
[346211189,1734775910102,-2695.44,0.00020821,2]
[346211190,1734775910112,-818.84367,0.00020821,2]
[346211191,1734775910121,-572.66,0.00020821,2]
[346211192,1734775910131,-151.0,0.00020821,2]
[346211193,1734775910140,-883.25,0.00020821,2]
[346211194,1734775910150,-500.0,0.00020821,2]
[346211195,1734775910159,-947.22,0.00020821,2]
[346211196,1734775910169,-500.0,0.00020821,2]
[346211197,1734775910179,-2084.85,0.00020821,2]
[346211198,1734775910188,-2249.96,0.00020821,2]
[346211199,1734775910198,-1472.03,0.00020821,2]
[346211200,1734775910207,-500.0,0.00020821,2]
[346211201,1734775910217,-1123.42,0.00020821,2]
[346211202,1734775910228,-500.0,0.00020821,2]
[346211203,1734775910238,-500.0,0.00020821,2]
[346211204,1734775910248,-5683.01,0.00020821,2]
[346211205,1734775910258,-2186.91,0.00020821,2]
[346211206,1734775910267,-2620.07,0.00020821,2]
[346211207,1734775910277,-4201.22,0.00020821,2]
[346211208,1734775910288,-820.18,0.00020821,2]
[346211209,1734775910298,-5057.25,0.00020821,2]
[346211210,1734775910308,-500.0,0.00020821,2]
[346211211,1734775910317,-10381.66,0.00020821,2]
[346211212,1734775910327,-4650.6,0.00020821,2]
[346211213,1734775910336,-561.54,0.00020821,2]
[346211214,1734775910346,-1183.78,0.00020821,2]
[346211215,1734775910355,-500.0,0.00020821,2]
[346211216,1734775910365,-525.46,0.00020821,2]
[346211217,1734775910374,-3296.73,0.00020821,2]
[346211218,1734775910384,-3947.52,0.00020821,2]
[346211219,1734775910393,-500.0,0.00020821,2]
[346211220,1734775910403,-3535.33,0.00020821,2]
[346211221,1734775910413,-500.0,0.00020821,2]
[346211222,1734775910422,-6490.03,0.00020821,2]
[346211223,1734775910432,-500.0,0.00020821,2]
[346211224,1734775910441,-1083.48,0.00020821,2]
[346211225,1734775910451,-845.6,0.00020821,2]
[346211226,1734775910461,-257.32,0.00020821,2]
[346211227,1734775910470,-3391.23,0.00020821,2]
[346211228,1734775910480,-1144.7,0.00020821,2]
[346211229,1734775910490,-500.0,0.00020821,2]
[346211230,1734775910499,-500.0,0.00020821,2]
[346211231,1734775910509,-5742.88,0.00020821,2]
[346211232,1734775910519,-5965.75,0.00020821,2]
[346211233,1734775910529,-928.79,0.00020821,2]
[346211234,1734775910539,-500.0,0.00020821,2]
[346211235,1734775910548,-2977.76,0.00020821,2]
[346211236,1734775910558,-503.44666767,0.00020821,2]
[346211237,1734775910569,-1382.72,0.00020821,2]
[346211238,1734775910578,-500.0,0.00020821,2]
[346211239,1734775910588,-2377.95,0.00020821,2]
[346211240,1734775910598,-7551.88,0.00020821,2]
[346211241,1734775910608,-4746.58,0.00020821,2]
[346211242,1734775910618,-2769.64,0.00020821,2]
[346211243,1734775910628,-500.0,0.00020821,2]
[346211244,1734775910638,-1797.59,0.00020821,2]
[346211245,1734775910649,-764.69,0.00020821,2]
[346211246,1734775910659,-151.0,0.00020821,2]
[346211247,1734775910670,-500.0,0.00020821,2]
[346211248,1734775910679,-1876.28,0.00020821,2]
[346211249,1734775910689,-11203.57,0.00020821,2]
[346211250,1734775910700,-500.0,0.00020821,2]
[346211251,1734775910710,-1762.7,0.00020821,2]
[346211252,1734775910720,-417.29033383,0.00020821,2]
[346211253,1734775910730,-1397.67,0.00020821,2]
[346211254,1734775910740,-3768.97,0.00020821,2]
[346211255,1734775910750,-507.44790527,0.00020821,2]
[346211256,1734775910760,-500.0,0.00020821,2]
[346211257,1734775910770,-3624.71,0.00020821,2]
[346211258,1734775910780,-20949.33,0.00020821,2]
[346211259,1734775910790,-151.0,0.00020821,2]
[346211260,1734775910799,-150.0,0.00020821,2]
[346211261,1734775910809,-500.0,0.00020821,2]
[346211262,1734775910819,-500.0,0.00020821,2]
[346211263,1734775910829,-151.0,0.00020821,2]
[346211264,1734775910838,-500.0,0.00020821,2]
[346211265,1734775910848,-502.65162441,0.00020821,2]
[346211266,1734775910857,-1049.07,0.00020821,2]
[346211267,1734775910867,-3136.63,0.00020821,2]
[346211268,1734775910878,-1027.9,0.00020821,2]
[346211269,1734775910887,-798.1,0.00020821,2]
[346211270,1734775910896,-500.0,0.00020821,2]
[346211271,1734775910906,-6628.04,0.00020821,2]
[346211272,1734775910916,-660.71,0.00020821,2]
[346211273,1734775910926,-154.203883,0.00020821,2]
[346211274,1734775910937,-500.0,0.00020821,2]
[346211275,1734775910947,-500.0,0.00020821,2]
[346211276,1734775910958,-500.0,0.00020821,2]
[346211277,1734775910971,-500.0,0.00020821,2]
[346211278,1734775910983,-500.0,0.00020821,2]
[346211279,1734775910994,-500.0,0.00020821,2]
[346211280,1734775911005,-151.0,0.00020821,2]
[346211281,1734775911014,-2498.1,0.00020821,2]
[346211282,1734775911024,-500.0,0.00020821,2]
[346211283,1734775911034,-500.0,0.00020821,2]
[346211284,1734775911045,-16473.89,0.00020821,2]
[346211285,1734775911056,-961.49,0.00020821,2]
[346211286,1734775911066,-151.0,0.00020821,2]
[346211287,1734775911075,-576.11,0.00020821,2]
[346211288,1734775911087,-500.0,0.00020821,2]
[346211289,1734775911096,-682.72,0.00020821,2]
[346211290,1734775911106,-947.84,0.00020821,2]
[346211291,1734775911117,-608.13,0.00020821,2]
[346211292,1734775911127,-2207.4,0.00020821,2]
[346211293,1734775911137,-616.43,0.00020821,2]
[346211294,1734775911146,-500.0,0.00020821,2]
[346211295,1734775911156,-641.08,0.00020821,2]
[346211296,1734775911166,-703.62,0.00020821,2]
[346211297,1734775911175,-819.35,0.00020821,2]
[346211298,1734775911185,-1708.42,0.00020821,2]
[346211299,1734775911195,-500.0,0.00020821,2]
[346211300,1734775911204,-827.89,0.00020821,2]
[346211301,1734775911215,-1594.45,0.00020821,2]
[346211302,1734775911226,-877.93,0.00020821,2]
[346211303,1734775911236,-7414.834697,0.00020821,2]
[346211304,1734775911245,-1310.13,0.00020821,2]
[346211305,1734775911255,-500.0,0.00020821,2]
[346211306,1734775911265,-663.97,0.00020821,2]
[346211307,1734775911274,-153.027635,0.00020821,2]
[346211308,1734775911285,-7414.834697,0.00020821,2]
[346211309,1734775911298,-500.0,0.00020821,2]
[346211310,1734775911310,-2854.57,0.00020821,2]
[346211311,1734775911320,-150.0,0.00020823,2]
[346211312,1734775911330,-1398.30094884,0.00020824,2]
[346211313,1734775911340,-150.0,0.00020826,2]
[346211314,1734775911586,-150.0,0.0002083,4]
[346211315,1734775911598,-500.0,0.00020831,2]
[346211316,1734775911608,-500.0,0.00020832,2]
[346211317,1734775911619,-500.0,0.00020832,2]
[346211318,1734775911628,-500.0,0.00020832,2]
[346211319,1734775911637,-500.0,0.00020832,2]
[346211320,1734775911646,-1500.0,0.00020836,2]
[346211321,1734775911655,-150.0,0.00020841,2]
[346211322,1734775911665,-150.0,0.00020841,2]
[346211323,1734775911674,-150.0,0.00020843,2]
[346211324,1734775911683,-150.0,0.00020845,2]
[346211325,1734775911693,-150.0,0.00020845,2]
[346211326,1734775911702,-150.0,0.00020845,2]
[346211327,1734775911712,-150.0,0.00020849,2]
[346211328,1734775911721,-150.0,0.00020851,2]
[346211329,1734775911731,-150.0,0.00020853,2]
[346211330,1734775911741,-150.0,0.00020854,2]
[346211331,1734775911750,-1500.0,0.00020855,2]
[346211332,1734775911760,-150.0,0.00020855,2]
[346211333,1734775911771,-150.0,0.00020855,2]
[346211334,1734775911780,-150.0,0.00020858,2]
[346211335,1734775911790,-1500.0,0.0002086,2]
[346211336,1734775911799,-150.0,0.0002086,2]
[346211337,1734775911809,-1500.0,0.00020861,2]
[346211338,1734775911819,-150.0,0.00020863,2]
[346211339,1734775911829,-150.0,0.00020863,2]
[346211340,1734775911838,-150.0,0.00020864,2]
[346211341,1734775911848,-150.0,0.00020864,2]
[346211342,1734775911858,-150.0,0.00020864,2]
[346211343,1734775911868,-1500.0,0.00020867,2]
[346211344,1734775911877,-150.0,0.00020867,2]
[346211345,1734775911887,-150.0,0.00020869,2]
[346211346,1734775911897,-150.0,0.00020874,4]
[346211347,1734775911907,-150.0,0.00020874,2]
[346211348,1734775911917,-150.0,0.00020874,2]
[346211349,1734775911926,-1500.0,0.00020877,2]
[346211350,1734775911935,-150.0,0.00020879,2]
[346211351,1734775911945,-150.0,0.00020879,2]
[346211352,1734775911955,-150.0,0.00020879,2]
[346211353,1734775911965,-150.0,0.0002088,2]
[346211354,1734775911975,-150.0,0.00020881,2]
[346211355,1734775911985,-150.0,0.00020882,2]
[346211356,1734775911995,-1124.0,0.00020884,2]
[346211357,1734775912005,-1500.0,0.00020886,2]
[346211358,1734775912015,-153.14358359,0.00020887,2]
[346211359,1734775912025,-150.0,0.00020887,2]
[346211360,1734775912035,-150.0,0.00020887,2]
[346211361,1734775912045,-150.0,0.00020891,2]
[346211362,1734775912060,-150.0,0.00020894,2]
[346211363,1734775912069,-150.0,0.00020895,2]
[346211364,1734775912079,-11303.44970053,0.000209,2]
[346211365,1734775912089,-150.0,0.00020901,2]
[346211366,1734775912099,-150.0,0.00020904,2]
[346211367,1734775912109,-1500.0,0.00020905,2]
[346211368,1734775912119,-150.0,0.00020906,2]
[346211369,1734775912130,-150.0,0.00020908,2]
[346211370,1734775912145,-150.0,0.00020909,2]
[346211371,1734775912155,-150.0,0.00020911,2]
[346211372,1734775912165,-150.0,0.00020912,2]
[346211373,1734775912176,-150.0,0.00020912,2]
[346211374,1734775912186,-1500.0,0.00020913,2]
[346211375,1734775912196,-150.0,0.00020913,2]
[346211376,1734775912206,-1500.0,0.00020915,2]
[346211377,1734775912216,-150.0,0.00020915,2]
[346211378,1734775912227,-150.0,0.00020915,2]
[346211379,1734775912237,-150.0,0.00020918,4]
[346211380,1734775912247,-150.0,0.00020918,2]
[346211381,1734775912256,-150.0,0.00020922,2]
[346211382,1734775912266,-150.0,0.00020924,2]
[346211383,1734775912275,-150.0,0.00020925,2]
[346211384,1734775912285,-150.0,0.00020925,2]
[346211385,1734775912296,-153.1327827,0.00020926,2]
[346211386,1734775912306,-150.0,0.00020927,2]
[346211387,1734775912315,-150.0,0.0002093,2]
[346211388,1734775912326,-150.0,0.00020932,2]
[346211389,1734775912335,-1500.0,0.00020933,2]
[346211390,1734775912345,-150.0,0.00020935,2]
[346211391,1734775912354,-150.0,0.00020936,2]
[346211392,1734775912365,-150.0,0.00020942,2]
[346211393,1734775912374,-150.0,0.00020943,2]
[346211394,1734775912384,-150.0,0.00020943,2]
[346211395,1734775912393,-150.0,0.00020945,2]
[346211396,1734775912403,-150.0,0.00020946,2]
[346211397,1734775912413,-150.0,0.00020946,2]
[346211398,1734775912423,-150.0,0.00020948,2]
[346211399,1734775912433,-150.0,0.0002095,2]
[346211400,1734775912443,-150.0,0.00020953,2]
[346211401,1734775912453,-751.39,0.00020955,2]
[346211402,1734775912463,-150.0,0.00020957,2]
[346211403,1734775912477,-150.0,0.00020957,2]
[346211404,1734775912487,-718.98,0.00020958,2]
[346211405,1734775912496,-150.0,0.00020959,2]
[346211406,1734775912506,-150.0,0.0002096,2]
[346211407,1734775912516,-150.0,0.00020961,2]
[346211408,1734775912526,-150.0,0.00020962,2]
[346211409,1734775912535,-150.0,0.00020963,2]
[346211410,1734775912546,-150.0,0.00020964,2]
[346211411,1734775912556,-150.0,0.00020965,2]
[346211412,1734775912566,-150.0,0.00020969,2]
[346211413,1734775912575,-150.0,0.00020969,2]
[346211414,1734775912585,-150.0,0.0002097,2]
[346211415,1734775912595,-1500.0,0.00020971,2]
[346211416,1734775912609,-150.0,0.00020971,2]
[346211417,1734775912618,-159.75906064,0.00020973,2]
[346211418,1734775912628,-500.0,0.00020973,2]
[346211419,1734775912638,-314.74090148,0.00020973,2]
[346211420,1734775912647,-529.58841278,0.00020973,2]
[346211421,1734775912657,-518.13600266,0.00020973,2]
[346211422,1734775912667,-500.0,0.00020973,2]
[346211423,1734775912677,-501.07097765,0.00020973,2]
[346211424,1734775912686,-503.16680909,0.00020973,2]
[346211425,1734775912696,-322.92313653,0.00020973,2]
[346211426,1734775912706,-500.0,0.00020973,2]
[346211427,1734775912715,-515.27717298,0.00020973,2]
[346211428,1734775912724,-516.34501077,0.00020973,2]
[346211429,1734775912734,-206.29323284,0.00020973,2]
[346211430,1734775912744,-500.0,0.00020973,2]
[346211431,1734775912754,-500.0,0.00020973,2]
[346211432,1734775912763,-150.0,0.00020973,2]
[346211433,1734775912772,-150.0,0.00020975,2]
[346211434,1734775912782,-150.0,0.00020975,2]
[346211435,1734775912792,-150.0,0.00020975,2]
[346211436,1734775912802,-150.0,0.00020975,2]
[346211437,1734775912811,-150.0,0.00020976,2]
[346211438,1734775912820,-150.0,0.00020977,2]
[346211439,1734775912830,-150.0,0.00020978,2]
[346211440,1734775912839,-150.0,0.00020979,2]
[346211441,1734775912849,-150.0,0.00020983,2]
[346211442,1734775912858,-150.0,0.00020984,2]
[346211443,1734775912867,-150.0,0.00020984,2]
[346211444,1734775912877,-150.0,0.00020986,2]
[346211445,1734775912886,-150.0,0.00020989,2]
[346211446,1734775912896,-150.0,0.0002099,2]
[346211447,1734775912906,-150.0,0.00020992,2]
[346211448,1734775912915,-150.0,0.00020994,2]
[346211449,1734775912927,-150.0,0.00020995,2]
[346211450,1734775912936,-150.0,0.00020996,4]
[346211451,1734775912947,-300.0,0.00020999,2]
[346211452,1734775912957,-1587519.47662617,0.00021,2]
[346211453,1734775912966,-2771.84075663,0.00021,3]
[346211454,1734775912975,-151.0,0.00021,2]
[346211455,1734775912984,-151.0,0.00021,2]
[346211456,1734775912994,-151.0,0.00021,2]
[346211457,1734775913003,-151.0,0.00021,2]
[346211458,1734775913013,-151.0,0.00021,2]
[346211459,1734775913022,-151.0,0.00021,2]
[346211460,1734775913031,-151.0,0.00021,2]
[346211461,1734775913041,-151.0,0.00021,2]
[346211462,1734775913054,-287.340753,0.00021,2]
[346211463,1734775913171,-2005.535627,0.00021,2]
[346211464,1734775913181,-219.023894,0.00021,2]
[346211465,1734775913190,-219.023894,0.00021,2]
[346211466,1734775913199,-151.0,0.00021,2]
[346211467,1734775913208,-151.0,0.00021,2]
[346211468,1734775913217,-151.0,0.00021,2]
[346211469,1734775913227,-151.0,0.00021,2]
[346211470,1734775913238,-158.46012,0.00021,2]
[346211471,1734775913248,-178.653876,0.00021,2]
[346211472,1734775913258,-178.653876,0.00021,2]
[346211473,1734775913268,-151.0,0.00021,2]
[346211474,1734775913277,-151.0,0.00021,2]
[346211475,1734775913289,-151.0,0.00021,2]
[346211476,1734775913298,-546.544357,0.00021,2]
[346211477,1734775913307,-546.544357,0.00021,2]
[346211478,1734775913316,-208.35921,0.00021,2]
[346211479,1734775913326,-151.0,0.00021,2]
[346211480,1734775913335,-208.35921,0.00021,2]
[346211481,1734775913344,-151.0,0.00021,2]
[346211482,1734775913353,-159.090281,0.00021,2]
[346211483,1734775913362,-178.301243,0.00021,2]
[346211484,1734775913372,-159.090281,0.00021,2]
[346211485,1734775913382,-1084.441464,0.00021,2]
[346211486,1734775913391,-1084.441464,0.00021,2]
[346211487,1734775913400,-557.730986,0.00021,2]
[346211488,1734775913409,-557.730986,0.00021,2]
[346211489,1734775913418,-151.0,0.00021,2]
[346211490,1734775913429,-1648.585471,0.00021,2]
[346211491,1734775913438,-1648.585471,0.00021,2]
[346211492,1734775913447,-151.0,0.00021,2]
[346211493,1734775913457,-151.0,0.00021,2]
[346211494,1734775913467,-342.523263,0.00021,2]
[346211495,1734775913477,-342.523263,0.00021,2]
[346211496,1734775913487,-151.0,0.00021,2]
[346211497,1734775913496,-151.0,0.00021,2]
[346211498,1734775913506,-151.0,0.00021,2]
[346211499,1734775913515,-255.093874,0.00021,2]
[346211500,1734775913525,-151.0,0.00021,2]
[346211501,1734775913534,-818.84367,0.00021,2]
[346211502,1734775913545,-818.84367,0.00021,2]
[346211503,1734775913554,-151.0,0.00021,2]
[346211504,1734775913563,-151.0,0.00021,2]
[346211505,1734775913573,-151.0,0.00021,2]
[346211506,1734775913582,-151.0,0.00021,2]
[346211507,1734775913592,-151.0,0.00021,2]
[346211508,1734775913601,-151.0,0.00021,2]
[346211509,1734775913609,-7414.834697,0.00021,2]
[346211510,1734775913619,-150.0,0.00021006,4]
[346211511,1734775913628,-11303.44970049,0.00021067,2]
[346211512,1734775913637,-150.0,0.00021094,4]
[346211513,1734775913646,-150.0,0.00021094,4]
[346211514,1734775913655,-300.0,0.00021094,2]
[346211515,1734775913663,-1315.92517,0.00021095,2]
[346211516,1734775913673,-2060.745603,0.00021095,2]
[346211517,1734775913681,-155.516392,0.00021095,2]
[346211518,1734775913690,-154.14021,0.00021095,2]
[346211519,1734775913699,-500.0,0.00021095,2]
[346211520,1734775913709,-500.0,0.00021095,2]
[346211521,1734775913718,-500.0,0.00021095,2]
[346211522,1734775913727,-500.0,0.00021095,2]
[346211523,1734775913736,-500.0,0.00021095,2]
[346211524,1734775913745,-500.0,0.00021095,2]
[346211525,1734775913755,-500.0,0.00021095,2]
[346211526,1734775913764,-500.0,0.00021095,2]
[346211527,1734775913772,-500.0,0.00021095,2]
[346211528,1734775913781,-726.79,0.00021095,2]
[346211529,1734775913791,-532.67,0.00021095,2]
[346211530,1734775913800,-500.0,0.00021095,2]
[346211531,1734775913810,-500.0,0.00021095,2]
[346211532,1734775913819,-694.79,0.00021095,2]
[346211533,1734775913827,-545.1,0.00021095,2]
[346211534,1734775913836,-500.0,0.00021095,2]
[346211535,1734775913845,-500.0,0.00021095,2]
[346211536,1734775913854,-500.0,0.00021095,2]
[346211537,1734775913863,-500.0,0.00021095,2]
[346211538,1734775913873,-500.0,0.00021095,2]
[346211539,1734775913882,-500.0,0.00021095,2]
[346211540,1734775913891,-500.0,0.00021095,2]
[346211541,1734775913900,-725.56,0.00021095,2]
[346211542,1734775913909,-500.0,0.00021095,2]
[346211543,1734775913918,-500.0,0.00021095,2]
[346211544,1734775913928,-628.09,0.00021095,2]
[346211545,1734775913937,-500.0,0.00021095,2]
[346211546,1734775913947,-500.0,0.00021095,2]
[346211547,1734775913956,-500.0,0.00021095,2]
[346211548,1734775913965,-709.26,0.00021095,2]
[346211549,1734775913974,-500.0,0.00021095,2]
[346211550,1734775913983,-709.06,0.00021095,2]
[346211551,1734775913993,-500.0,0.00021095,2]
[346211552,1734775914004,-832.53,0.00021095,2]
[346211553,1734775914014,-500.0,0.00021095,2]
[346211554,1734775914022,-500.0,0.00021095,2]
[346211555,1734775914032,-500.0,0.00021095,2]
[346211556,1734775914042,-500.0,0.00021095,2]
[346211557,1734775914053,-500.0,0.00021095,2]
[346211558,1734775914062,-500.0,0.00021095,2]
[346211559,1734775914071,-500.0,0.00021095,2]
[346211560,1734775914080,-500.0,0.00021095,2]
[346211561,1734775914089,-500.0,0.00021095,2]
[346211562,1734775914098,-510.56128448,0.00021095,2]
[346211563,1734775914107,-500.0,0.00021095,2]
[346211564,1734775914116,-500.0,0.00021095,2]
[346211565,1734775914127,-500.0,0.00021095,2]
[346211566,1734775914136,-500.0,0.00021095,2]
[346211567,1734775914152,-500.0,0.00021095,2]
[346211568,1734775914165,-500.0,0.00021095,2]
[346211569,1734775914177,-500.0,0.00021095,2]
[346211570,1734775914190,-500.0,0.00021095,2]
[346211571,1734775914205,-500.0,0.00021095,2]
[346211572,1734775914220,-500.0,0.00021095,2]
[346211573,1734775914235,-500.0,0.00021095,2]
[346211574,1734775914249,-500.0,0.00021095,2]
[346211575,1734775914262,-636.02103489,0.00021095,2]
[346211576,1734775914275,-500.0,0.00021095,2]
[346211577,1734775914291,-500.0,0.00021095,2]
[346211578,1734775914308,-500.0,0.00021095,2]
[346211579,1734775914323,-3009.64,0.00021095,2]
[346211580,1734775914337,-1290.83,0.00021095,2]
[346211581,1734775914351,-500.0,0.00021095,2]
[346211582,1734775914366,-500.0,0.00021095,2]
[346211583,1734775914381,-1763.28,0.00021095,2]